[Event "Faroese-ch Open 2025"]
[Site "Torshavn"]
[Date "2025.04.18"]
[Round "7.3"]
[White "Xin, Lisa J."]
[Black "Staksberg, Luca Eydun"]
[Result "1-0"]
[Annotator "NA"]
[ECO "D04"]
[WhiteElo "1562"]
[BlackElo "1692"]
[PlyCount "119"]
[EventDate "2025.04.11"]
[EventType "swiss"]
[EventCountry "FAI"]
[SourceTitle "playchess.com"]
[Source "ChessBase"]
[SourceQuality "1"]
[TimeControl "40/5400+30:900+30"]

1. d4 {[%emt 0:00:01]} d5 {[%emt 0:00:05]} 2. Nf3 {[%emt 0:00:17]} Nf6 {[%emt 0:00:13]} 3. e3 {[%emt 0:00:14]} Bf5 {[%emt 0:00:59]} 4. Bd3 {[%emt 0:00:13]} Bg6 {[%emt 0:01:23]} 5. Ne5 {[%emt 0:01:54]} e6 {[%emt 0:02:29]} 6. Nxg6 {[%emt 0:00:34]} hxg6 {[%emt 0:00:02]} 7. Nd2 {[%emt 0:00:39]} c5 {[%emt 0:02:52]} 8. b3 {[%emt 0:01:20]} Qc7 {[%emt 0:04:07]} 9. h3 {[%emt 0:04:58]} cxd4 {[%emt 0:02:33]} 10. exd4 {[%emt 0:00:20]} Nc6 {[%emt 0:02:23]} 11. Bb2 {[%emt 0:05:34]} a6 {[%emt 0:07:24]} 12. a3 {[%emt 0:01:03]} Bd6 {[%emt 0:08:22]} 13. Qe2 {[%emt 0:09:45]} Nh5 {[%emt 0:02:50]} 14. O-O-O {[%emt 0:13:00]} Nf4 {[%emt 0:01:16]} 15. Qf3 {[%emt 0:01:40]} Nxd3+ {[%emt 0:00:45]} 16. Qxd3 {[%emt 0:00:15]} O-O-O {[%emt 0:01:37]} 17. Kb1 {[%emt 0:01:28]} Kb8 {[%emt 0:00:42]} 18. Nf3 {[%emt 0:01:41]} Rc8 {[%emt 0:05:25]} 19. c4 {[%emt 0:18:37]} Be7 {[%emt 0:11:12]} 20. cxd5 exd5 {[%emt 0:00:26]} 21. Ne5 {[%emt 0:00:00]} Rhf8 {[%emt 0:05:38]} 22. Rhe1 {[%emt 0:00:29]} Bf6 {[%emt 0:05:24]} 23. Rc1 {[%emt 0:04:43]} Qd6 {[%emt 0:02:59]} 24. Qf3 {[%emt 0:06:45]} Bxe5 {[%emt 0:08:22]} 25. dxe5 {[%emt 0:01:16]} Qe6 {[%emt 0:00:33]} 26. Rcd1 {[%emt 0:03:52]} Rcd8 {[%emt 0:02:52]} 27. Qg4 {[%emt 0:03:02]} Rfe8 {[%emt 0:08:04]} 28. Qxe6 {[%emt 0:00:51]} Rxe6 {[%emt 0:00:01]} 29. f4 {[%emt 0:02:32]} Ne7 {[%emt 0:03:03]} 30. g4 {[%emt 0:01:34]} Rh8 {[%emt 0:01:52]} 31. Re3 {[%emt 0:01:32]} Rc6 {[%emt 0:03:22]} 32. Rdd3 {[%emt 0:02:48]} Rhc8 {[%emt 0:01:17]} 33. Rc3 {[%emt 0:00:24]} Rxc3 {[%emt 0:02:39]} 34. Rxc3 {[%emt 0:00:16]} Rh8 {[%emt 0:01:49]} 35. a4 {[%emt 0:01:22]} Nc6 {[%emt 0:01:13]} 36. Ba3 {[%emt 0:03:32]} d4 {[%emt 0:01:03]} 37. Rd3 {[%emt 0:00:17]} Kc7 {[%emt 0:00:32]} 38. Bc5 {[%emt 0:00:23]} b6 {[%emt 0:01:05]} 39. Bxd4 {[%emt 0:00:23]} Nxd4 {[%emt 0:00:02]} 40. Rxd4 {[%emt 0:00:00]} Rxh3 {[%emt 0:00:00]} 41. Kc2 {[%emt 0:01:08]} Rg3 {[%emt 0:02:46]} 42. g5 {[%emt 0:00:20]} Rf3 {[%emt 0:00:10]} 43. b4 {[%emt 0:01:58]} Ra3 {[%emt 0:01:08]} 44. b5 {[%emt 0:00:16]} axb5 {[%emt 0:01:55]} 45. axb5 {[%emt 0:00:11]} Ra5 {[%emt 0:02:03]} 46. Rb4 {[%emt 0:00:56]} Kd7 {[%emt 0:00:48]} 47. Kd3 {[%emt 0:09:13]} Ke7 {[%emt 0:01:05]} 48. Ke3 {[%emt 0:01:09]} Ke6 {[%emt 0:01:48]} 49. Kd4 {[%emt 0:03:10]} f6 {[%emt 0:03:48]} 50. exf6 gxf6 {[%emt 0:00:01]} 51. gxf6 {[%emt 0:00:39]} Kxf6 {[%emt 0:00:01]} 52. Kd5 {[%emt 0:00:38]} Kf5 {[%emt 0:01:48]} 53. Kc6 {[%emt 0:00:15]} Ra1 {[%emt 0:00:27]} 54. Kxb6 {[%emt 0:00:10]} Rh1 {[%emt 0:02:02]} 55. Kc6 {[%emt 0:02:09]} Rh6 {[%emt 0:00:38]} 56. Kb7 {[%emt 0:00:49]} Rh1 {[%emt 0:01:48]} 57. b6 {[%emt 0:00:25]} Rc1 {[%emt 0:00:35]} 58. Kb8 {[%emt 0:00:30]} Ke6 {[%emt 0:01:06]} 59. b7 {[%emt 0:00:55]} Kd7 {[%emt 0:01:20]} 60. Rb6 {[%emt 0:02:36]} 1-0

[Event "Faroese-ch Open 2025"]
[Site "Torshavn"]
[Date "2025.04.18"]
[Round "7.4"]
[White "Joensen, Sigurd"]
[Black "Morkore, Mortan"]
[Result "1/2-1/2"]
[Annotator "NA"]
[ECO "C48"]
[WhiteElo "1619"]
[BlackElo "1681"]
[PlyCount "125"]
[EventDate "2025.04.11"]
[EventType "swiss"]
[EventCountry "FAI"]
[SourceTitle "playchess.com"]
[Source "ChessBase"]
[SourceQuality "1"]
[TimeControl "40/5400+30:900+30"]

1. e4 {[%emt 0:03:15]} e5 {[%emt 0:00:10]} 2. Nf3 {[%emt 0:00:04]} Nc6 {[%emt 0:00:04]} 3. Bb5 {[%emt 0:00:26]} Nf6 {[%emt 0:00:43]} 4. Nc3 {[%emt 0:00:05]} Bc5 {[%emt 0:00:25]} 5. d3 {[%emt 0:00:34]} d6 {[%emt 0:00:24]} 6. O-O {[%emt 0:00:32]} Bg4 {[%emt 0:00:55]} 7. h3 {[%emt 0:03:45]} h5 {[%emt 0:02:36]} 8. Bg5 {[%emt 0:03:58]} Qd7 {[%emt 0:01:42]} 9. Bxc6 {[%emt 0:05:16]} bxc6 {[%emt 0:03:12]} 10. Bxf6 {[%emt 0:12:51]} gxf6 {[%emt 0:00:02]} 11. hxg4 {[%emt 0:15:21]} hxg4 {[%emt 0:00:42]} 12. d4 {[%emt 0:06:35]} gxf3 {[%emt 0:04:19]} 13. Qxf3 {[%emt 0:05:29]} O-O-O {[%emt 0:02:45]} 14. dxc5 {[%emt 0:00:38]} Rdg8 {[%emt 0:00:48]} 15. Qf5 {[%emt 0:00:46]} Qxf5 {[%emt 0:05:42]} 16. exf5 {[%emt 0:00:05]} d5 {[%emt 0:00:28]} 17. f3 {[%emt 0:06:51]} Rh7 {[%emt 0:02:09]} 18. Kf2 {[%emt 0:02:24]} Rh2 {[%emt 0:00:02]} 19. Rg1 {[%emt 0:01:01]} Rg5 {[%emt 0:00:30]} 20. Rh1 {[%emt 0:01:08]} Rgxg2+ {[%emt 0:02:05]} 21. Ke3 {[%emt 0:07:37]} d4+ {[%emt 0:01:23]} 22. Kd3 {[%emt 0:02:51]} Rd2+ {[%emt 0:04:27]} 23. Kc4 {[%emt 0:01:39]} dxc3 {[%emt 0:00:10]} 24. Rxh2 {[%emt 0:02:09]} Rxh2 {[%emt 0:01:09]} 25. Kxc3 {[%emt 0:01:19]} Rf2 {[%emt 0:00:05]} 26. Rg1 {[%emt 0:04:46]} Rxf3+ {[%emt 0:00:07]} 27. Kd2 {[%emt 0:01:21]} Rxf5 {[%emt 0:01:00]} 28. Rg7 {[%emt 0:00:43]} Rf3 {[%emt 0:00:34]} 29. Rxf7 {[%emt 0:00:37]} e4 {[%emt 0:00:17]} 30. Re7 {[%emt 0:02:13]} f5 {[%emt 0:00:33]} 31. Ke2 {[%emt 0:00:45]} Kb7 {[%emt 0:02:48]} 32. b4 {[%emt 0:02:10]} Ra3 {[%emt 0:02:37]} 33. Re5 {[%emt 0:01:03]} Rxa2 {[%emt 0:00:19]} 34. Kd2 {[%emt 0:01:00]} Ka6 {[%emt 0:02:35]} 35. Rxf5 {[%emt 0:00:39]} Kb5 {[%emt 0:00:01]} 36. Rf4 {[%emt 0:02:37]} Kxb4 {[%emt 0:01:15]} 37. Rxe4+ {[%emt 0:00:04]} Kxc5 {[%emt 0:00:01]} 38. Re3 {[%emt 0:00:57]} Rb2 {[%emt 0:01:10]} 39. Rc3+ {[%emt 0:00:34]} Kb5 {[%emt 0:00:15]} 40. Kc1 {[%emt 0:00:00]} Rb4 {[%emt 0:00:00]} 41. Ra3 {[%emt 0:02:47]} a5 {[%emt 0:01:10]} 42. c3 {[%emt 0:01:06]} Ra4 {[%emt 0:00:21]} 43. Rb3+ {[%emt 0:00:36]} Kc4 {[%emt 0:00:02]} 44. Kb2 {[%emt 0:02:15]} Kd5 {[%emt 0:01:24]} 45. Rb7 {[%emt 0:01:40]} Kd6 {[%emt 0:00:10]} 46. Ra7 {[%emt 0:01:12]} Kc5 {[%emt 0:05:17]} 47. Rxc7 {[%emt 0:02:23]} Kb6 {[%emt 0:01:12]} 48. Rc8 {[%emt 0:01:07]} Kb7 {[%emt 0:00:17]} 49. Rf8 {[%emt 0:00:48]} Re4 {[%emt 0:00:15]} 50. Rf1 {[%emt 0:03:25]} c5 {[%emt 0:01:40]} 51. Ka3 {[%emt 0:01:31]} Kc6 {[%emt 0:01:21]} 52. Kb3 {[%emt 0:01:28]} Kb5 {[%emt 0:03:12]} 53. Rf8 {[%emt 0:02:40]} a4+ {[%emt 0:01:12]} 54. Ka3 {[%emt 0:01:05]} Kc4 {[%emt 0:00:37]} 55. Kxa4 {[%emt 0:00:26]} Kxc3+ {[%emt 0:00:13]} 56. Kb5 {[%emt 0:00:29]} c4 {[%emt 0:00:58]} 57. Rf3+ {[%emt 0:00:46]} Kb2 {[%emt 0:01:58]} 58. Rf2+ {[%emt 0:00:27]} Kc3 {[%emt 0:00:36]} 59. Rf3+ {[%emt 0:00:29]} Kd4 {[%emt 0:00:58]} 60. Kb4 {[%emt 0:00:40]} Kd5 {[%emt 0:00:13]} 61. Rf5+ {[%emt 0:00:51]} Kd4 {[%emt 0:01:28]} 62. Rf3 {[%emt 0:00:44]} Rh4 {[%emt 0:00:20]} 63. Rc3 {[%emt 0:00:18]} 1/2-1/2